[Event "Titled Tuesday Blitz November 22 Early 2022"]
[White "Janaszak, Dawid"]
[Black "Bashirli, Saadat"]
[WhiteFideId "1119206"]
[BlackFideId "13429990"]
[WhiteElo "2226"]
[BlackElo "1408"]
[Result "1-0"]
[Round "09"]
[TimeControl "180+1"]
[Date "2022.11.23"]
[WhiteClock "0:00:48"]
[BlackClock "0:00:02"]

1. Nc3 {[%clk 0:03:00]}  d5 {[%clk 0:02:56]} 2. e4 {[%clk 0:03:00]}  c6 {[%clk 0:02:55]} 3. d4 {[%clk 0:02:59]}  g6 {[%clk 0:02:55]} 4. Nf3 {[%clk 0:02:51]}  Bg7 {[%clk 0:02:53]} 5. h3 {[%clk 0:02:51]}  dxe4 {[%clk 0:02:53]} 6. Nxe4 {[%clk 0:02:51]}  Nf6 {[%clk 0:02:52]} 7. Nxf6+ {[%clk 0:02:51]}  Bxf6 {[%clk 0:02:53]} 8. c3 {[%clk 0:02:46]}  O-O {[%clk 0:02:52]} 9. Bh6 {[%clk 0:02:44]}  Re8 {[%clk 0:02:47]} 10. Bc4 {[%clk 0:02:44]}  e5 {[%clk 0:02:41]} 11. dxe5 {[%clk 0:02:42]}  Qxd1+ {[%clk 0:02:41]} 12. Rxd1 {[%clk 0:02:26]}  Bxe5 {[%clk 0:02:40]} 13. O-O {[%clk 0:02:22]}  Bg7 {[%clk 0:02:02]} 14. Bf4 {[%clk 0:02:13]}  Nd7 {[%clk 0:01:47]} 15. Ng5 {[%clk 0:02:09]}  Ne5 {[%clk 0:00:29]} 16. Bxe5 {[%clk 0:02:09]}  Rxe5 {[%clk 0:00:27]} 17. Nxf7 {[%clk 0:01:56]}  Rc5 {[%clk 0:00:24]} 18. Rd8+ {[%clk 0:01:51]}  Bf8 {[%clk 0:00:23]} 19. Bb3 {[%clk 0:01:30]}  Kg7 {[%clk 0:00:22]} 20. Re1 {[%clk 0:01:29]}  Rf5 {[%clk 0:00:16]} 21. Ree8 {[%clk 0:01:28]}  Bc5 {[%clk 0:00:14]} 22. Rxc8 {[%clk 0:01:07]}  Bxf2+ {[%clk 0:00:13]} 23. Kh2 {[%clk 0:01:05]}  Rxc8 {[%clk 0:00:14]} 24. Rxc8 {[%clk 0:01:05]}  a5 {[%clk 0:00:13]} 25. g4 {[%clk 0:01:04]}  Rf6 {[%clk 0:00:10]} 26. Rc7 {[%clk 0:01:00]}  Rxf7 {[%clk 0:00:11]} 27. Rxf7+ {[%clk 0:01:00]}  Kh6 {[%clk 0:00:09]} 28. Rxf2 {[%clk 0:00:58]}  a4 {[%clk 0:00:09]} 29. Bd1 {[%clk 0:00:51]}  b5 {[%clk 0:00:08]} 30. Rf7 {[%clk 0:00:51]}  c5 {[%clk 0:00:08]} 31. h4 {[%clk 0:00:51]}  g5 {[%clk 0:00:07]} 32. h5 {[%clk 0:00:47]}  b4 {[%clk 0:00:05]} 33. Bc2 {[%clk 0:00:47]}  b3 {[%clk 0:00:02]} 34. Rxh7# {[%clk 0:00:48]} 1-0


[Site "https://www.chess.com"]

[Event "Titled Tuesday Blitz November 22 Early 2022"]
[White "Jeet, Jain"]
[Black "Fiol, Fabrice"]
[WhiteFideId "5073022"]
[BlackFideId "611670"]
[WhiteElo "2067"]
[BlackElo "2456"]
[Result "1-0"]
[Round "09"]
[TimeControl "180+1"]
[Date "2022.11.23"]
[WhiteClock "0:00:21"]
[BlackClock "0:00:09"]

1. d4 {[%clk 0:03:00]}  Nf6 {[%clk 0:02:59]} 2. Bf4 {[%clk 0:03:00]}  b6 {[%clk 0:02:58]} 3. Nf3 {[%clk 0:03:00]}  Bb7 {[%clk 0:02:57]} 4. e3 {[%clk 0:03:01]}  e6 {[%clk 0:02:58]} 5. Nbd2 {[%clk 0:03:00]}  d6 {[%clk 0:02:58]} 6. h3 {[%clk 0:03:00]}  Nbd7 {[%clk 0:02:57]} 7. c4 {[%clk 0:03:00]}  g6 {[%clk 0:02:57]} 8. Be2 {[%clk 0:03:00]}  Bg7 {[%clk 0:02:57]} 9. O-O {[%clk 0:03:00]}  O-O {[%clk 0:02:57]} 10. Rc1 {[%clk 0:02:59]}  Re8 {[%clk 0:02:57]} 11. b4 {[%clk 0:02:58]}  e5 {[%clk 0:02:57]} 12. Bh2 {[%clk 0:02:57]}  e4 {[%clk 0:02:51]} 13. Ne1 {[%clk 0:02:56]}  Qe7 {[%clk 0:02:49]} 14. Nb3 {[%clk 0:02:52]}  Rac8 {[%clk 0:02:44]} 15. c5 {[%clk 0:02:50]}  dxc5 {[%clk 0:02:34]} 16. bxc5 {[%clk 0:02:49]}  Bd5 {[%clk 0:02:31]} 17. Nc2 {[%clk 0:02:43]}  a5 {[%clk 0:02:23]} 18. Bb5 {[%clk 0:02:23]}  c6 {[%clk 0:02:18]} 19. Be2 {[%clk 0:02:08]}  a4 {[%clk 0:02:17]} 20. Nd2 {[%clk 0:02:02]}  bxc5 {[%clk 0:02:08]} 21. dxc5 {[%clk 0:02:02]}  Nxc5 {[%clk 0:02:07]} 22. Nb4 {[%clk 0:02:00]}  Red8 {[%clk 0:01:54]} 23. Qc2 {[%clk 0:01:57]}  Nd3 {[%clk 0:01:49]} 24. Nxd3 {[%clk 0:01:52]}  exd3 {[%clk 0:01:48]} 25. Bxd3 {[%clk 0:01:53]}  Re8 {[%clk 0:01:13]} 26. Nc4 {[%clk 0:01:42]}  Ne4 {[%clk 0:01:06]} 27. Qxa4 {[%clk 0:01:31]}  Nc5 {[%clk 0:00:58]} 28. Qc2 {[%clk 0:01:27]}  Nxd3 {[%clk 0:00:57]} 29. Qxd3 {[%clk 0:01:28]}  Red8 {[%clk 0:00:53]} 30. Qc2 {[%clk 0:01:21]}  Qe6 {[%clk 0:00:52]} 31. Nb6 {[%clk 0:01:17]}  Be4 {[%clk 0:00:44]} 32. Qc4 {[%clk 0:01:14]}  Qxc4 {[%clk 0:00:39]} 33. Nxc4 {[%clk 0:01:07]}  Ra8 {[%clk 0:00:34]} 34. a3 {[%clk 0:00:57]}  Bd3 {[%clk 0:00:33]} 35. Rfe1 {[%clk 0:00:57]}  Bxc4 {[%clk 0:00:33]} 36. Rxc4 {[%clk 0:00:58]}  Rxa3 {[%clk 0:00:31]} 37. Rxc6 {[%clk 0:00:58]}  Ra2 {[%clk 0:00:31]} 38. Bg3 {[%clk 0:00:56]}  h5 {[%clk 0:00:30]} 39. h4 {[%clk 0:00:57]}  Rdd2 {[%clk 0:00:28]} 40. Rb1 {[%clk 0:00:53]}  Rdb2 {[%clk 0:00:20]} 41. Rbc1 {[%clk 0:00:51]}  Bf6 {[%clk 0:00:19]} 42. Rc8+ {[%clk 0:00:49]}  Kg7 {[%clk 0:00:19]} 43. R8c7 {[%clk 0:00:41]}  g5 {[%clk 0:00:19]} 44. hxg5 {[%clk 0:00:40]}  Bxg5 {[%clk 0:00:18]} 45. Be5+ {[%clk 0:00:40]}  Bf6 {[%clk 0:00:18]} 46. Bxb2 {[%clk 0:00:40]}  Rxb2 {[%clk 0:00:19]} 47. Rd7 {[%clk 0:00:39]}  Be5 {[%clk 0:00:19]} 48. g3 {[%clk 0:00:36]}  Kg6 {[%clk 0:00:19]} 49. Kg2 {[%clk 0:00:36]}  h4 {[%clk 0:00:17]} 50. gxh4 {[%clk 0:00:35]}  Kf5 {[%clk 0:00:18]} 51. Rxf7+ {[%clk 0:00:34]}  Ke6 {[%clk 0:00:18]} 52. Rf3 {[%clk 0:00:30]}  Rb4 {[%clk 0:00:19]} 53. Rh1 {[%clk 0:00:30]}  Rg4+ {[%clk 0:00:20]} 54. Kf1 {[%clk 0:00:30]}  Rb4 {[%clk 0:00:20]} 55. Kg2 {[%clk 0:00:28]}  Rg4+ {[%clk 0:00:18]} 56. Rg3 {[%clk 0:00:28]}  Bxg3 {[%clk 0:00:10]} 57. fxg3 {[%clk 0:00:29]}  Rg7 {[%clk 0:00:10]} 58. Kf3 {[%clk 0:00:29]}  Kf5 {[%clk 0:00:11]} 59. e4+ {[%clk 0:00:28]}  Kg6 {[%clk 0:00:12]} 60. g4 {[%clk 0:00:27]}  Rf7+ {[%clk 0:00:13]} 61. Kg3 {[%clk 0:00:27]}  Rb7 {[%clk 0:00:13]} 62. Rf1 {[%clk 0:00:27]}  Rb3+ {[%clk 0:00:12]} 63. Rf3 {[%clk 0:00:28]}  Rb4 {[%clk 0:00:13]} 64. Kf4 {[%clk 0:00:28]}  Kh6 {[%clk 0:00:13]} 65. h5 {[%clk 0:00:27]}  Kg7 {[%clk 0:00:12]} 66. g5 {[%clk 0:00:27]}  Kh7 {[%clk 0:00:13]} 67. Kf5 {[%clk 0:00:27]}  Kg7 {[%clk 0:00:13]} 68. e5 {[%clk 0:00:25]}  Rh4 {[%clk 0:00:09]} 69. h6+ {[%clk 0:00:25]}  Kh7 {[%clk 0:00:09]} 70. e6 {[%clk 0:00:25]}  Rh2 {[%clk 0:00:09]} 71. Kf6 {[%clk 0:00:21]}  Re2 {[%clk 0:00:09]} 72. g6+ {[%clk 0:00:20]}  Kg8 {[%clk 0:00:08]} 73. h7+ {[%clk 0:00:19]}  Kh8 {[%clk 0:00:08]} 74. g7+ {[%clk 0:00:19]}  Kxh7 {[%clk 0:00:09]} 75. Rh3+ {[%clk 0:00:20]}  Kg8 {[%clk 0:00:09]} 76. Rh8# {[%clk 0:00:21]} 1-0


[Site "https://www.chess.com"]

[Event "Titled Tuesday Blitz November 22 Early 2022"]
[White "Jimenez Almeida, Luis David"]
[Black "Vasques, Antonio Pedro Freixial"]
[WhiteFideId "22242244"]
[BlackFideId "1908332"]
[WhiteElo "2158"]
[BlackElo "2243"]
[Result "1-0"]
[Round "09"]
[TimeControl "180+1"]
[Date "2022.11.23"]
[WhiteClock "0:02:10"]
[BlackClock "0:02:20"]

1. e4 {[%clk 0:03:00]}  c5 {[%clk 0:02:58]} 2. Nc3 {[%clk 0:03:00]}  d6 {[%clk 0:02:56]} 3. Nge2 {[%clk 0:03:00]}  Nf6 {[%clk 0:02:55]} 4. d4 {[%clk 0:03:00]}  cxd4 {[%clk 0:02:55]} 5. Nxd4 {[%clk 0:03:01]}  e6 {[%clk 0:02:56]} 6. Bg5 {[%clk 0:02:59]}  Be7 {[%clk 0:02:54]} 7. Qd2 {[%clk 0:02:58]}  h6 {[%clk 0:02:47]} 8. Bh4 {[%clk 0:02:39]}  Nxe4 {[%clk 0:02:46]} 9. Bxe7 {[%clk 0:02:37]}  Nxd2 {[%clk 0:02:41]} 10. Bxd8 {[%clk 0:02:37]}  Nxf1 {[%clk 0:02:40]} 11. Ba5 {[%clk 0:02:25]}  b6 {[%clk 0:02:24]} 12. Bb4 {[%clk 0:02:24]}  Ba6 {[%clk 0:02:20]} 13. Ndb5 {[%clk 0:02:10]} 1-0


[Site "https://www.chess.com"]

[Event "Titled Tuesday Blitz November 22 Early 2022"]
[White "Kim, Sergey"]
[Black "Zacurdajev, Dmitry"]
[WhiteFideId "13700570"]
[BlackFideId "4196309"]
[WhiteElo "2608"]
[BlackElo "2179"]
[Result "1-0"]
[Round "09"]
[TimeControl "180+1"]
[Date "2022.11.23"]
[WhiteClock "0:01:23"]
[BlackClock "0:00:02"]

1. d4 {[%clk 0:03:00]}  d5 {[%clk 0:01:35]} 2. c4 {[%clk 0:03:00]}  e6 {[%clk 0:01:35]} 3. Nc3 {[%clk 0:03:00]}  Nf6 {[%clk 0:01:36]} 4. Nf3 {[%clk 0:03:00]}  Be7 {[%clk 0:01:35]} 5. Bf4 {[%clk 0:03:00]}  Nbd7 {[%clk 0:01:25]} 6. e3 {[%clk 0:03:00]}  O-O {[%clk 0:01:16]} 7. c5 {[%clk 0:03:00]}  Nh5 {[%clk 0:01:13]} 8. Be5 {[%clk 0:02:59]}  Nxe5 {[%clk 0:01:12]} 9. Nxe5 {[%clk 0:02:59]}  Nf6 {[%clk 0:01:12]} 10. Bd3 {[%clk 0:02:58]}  Nd7 {[%clk 0:01:07]} 11. Nf3 {[%clk 0:02:41]}  b6 {[%clk 0:01:02]} 12. b4 {[%clk 0:02:40]}  a5 {[%clk 0:01:01]} 13. a3 {[%clk 0:02:39]}  c6 {[%clk 0:00:57]} 14. O-O {[%clk 0:02:37]}  Ba6 {[%clk 0:00:57]} 15. Rb1 {[%clk 0:02:14]}  Bxd3 {[%clk 0:00:55]} 16. Qxd3 {[%clk 0:02:14]}  Qc7 {[%clk 0:00:49]} 17. Rfc1 {[%clk 0:02:08]}  Rfb8 {[%clk 0:00:43]} 18. h3 {[%clk 0:02:01]}  h6 {[%clk 0:00:41]} 19. Ne2 {[%clk 0:01:57]}  axb4 {[%clk 0:00:35]} 20. axb4 {[%clk 0:01:56]}  bxc5 {[%clk 0:00:27]} 21. bxc5 {[%clk 0:01:55]}  Qa5 {[%clk 0:00:22]} 22. Nf4 {[%clk 0:01:48]}  e5 {[%clk 0:00:19]} 23. dxe5 {[%clk 0:01:44]}  Nxc5 {[%clk 0:00:16]} 24. Qf5 {[%clk 0:01:43]}  Ne4 {[%clk 0:00:14]} 25. e6 {[%clk 0:01:37]}  f6 {[%clk 0:00:11]} 26. Qg6 {[%clk 0:01:30]}  Rxb1 {[%clk 0:00:07]} 27. Rxb1 {[%clk 0:01:29]}  Qa2 {[%clk 0:00:08]} 28. Rf1 {[%clk 0:01:28]}  Nd6 {[%clk 0:00:02]} 29. Nh5 {[%clk 0:01:23]}  Bf8 {[%clk 0:00:02]} 30. Nxf6+ {[%clk 0:01:23]} 1-0


[Site "https://www.chess.com"]

[Event "Titled Tuesday Blitz November 22 Early 2022"]
[White "Kirillov, Dmitry"]
[Black "Piesik, Piotr"]
[WhiteFideId "34180572"]
[BlackFideId "1136194"]
[WhiteElo "2095"]
[BlackElo "2316"]
[Result "0-1"]
[Round "09"]
[TimeControl "180+1"]
[Date "2022.11.23"]
[WhiteClock "0:00:02"]
[BlackClock "0:01:18"]

1. e4 {[%clk 0:03:00]}  g6 {[%clk 0:02:59]} 2. d4 {[%clk 0:02:59]}  Bg7 {[%clk 0:03:00]} 3. Nf3 {[%clk 0:02:59]}  c6 {[%clk 0:03:01]} 4. c4 {[%clk 0:02:55]}  d5 {[%clk 0:03:01]} 5. cxd5 {[%clk 0:02:45]}  cxd5 {[%clk 0:03:02]} 6. e5 {[%clk 0:02:45]}  Nc6 {[%clk 0:03:01]} 7. Nc3 {[%clk 0:02:45]}  Nh6 {[%clk 0:02:59]} 8. Bd3 {[%clk 0:02:43]}  Bd7 {[%clk 0:02:58]} 9. Nxd5 {[%clk 0:02:23]}  Bg4 {[%clk 0:02:52]} 10. Be4 {[%clk 0:02:21]}  O-O {[%clk 0:02:50]} 11. Be3 {[%clk 0:02:15]}  Nf5 {[%clk 0:02:45]} 12. Bxf5 {[%clk 0:01:40]}  gxf5 {[%clk 0:02:44]} 13. Nc3 {[%clk 0:01:35]}  Bxf3 {[%clk 0:02:28]} 14. gxf3 {[%clk 0:01:35]}  f4 {[%clk 0:02:27]} 15. Bxf4 {[%clk 0:01:29]}  Qxd4 {[%clk 0:02:27]} 16. Be3 {[%clk 0:00:58]}  Qxe5 {[%clk 0:02:22]} 17. Qc2 {[%clk 0:00:49]}  Nd4 {[%clk 0:02:18]} 18. Qd1 {[%clk 0:00:35]}  Rfd8 {[%clk 0:02:14]} 19. O-O {[%clk 0:00:33]}  Rd6 {[%clk 0:02:05]} 20. Kh1 {[%clk 0:00:22]}  Rad8 {[%clk 0:01:59]} 21. f4 {[%clk 0:00:18]}  Qf5 {[%clk 0:01:49]} 22. Rg1 {[%clk 0:00:09]}  Nc2 {[%clk 0:01:43]} 23. Qf3 {[%clk 0:00:06]}  Nxa1 {[%clk 0:01:43]} 24. Rxa1 {[%clk 0:00:07]}  b6 {[%clk 0:01:40]} 25. Rg1 {[%clk 0:00:06]}  Rg6 {[%clk 0:01:38]} 26. Re1 {[%clk 0:00:05]}  Bxc3 {[%clk 0:01:35]} 27. bxc3 {[%clk 0:00:04]}  Qd5 {[%clk 0:01:35]} 28. Qxd5 {[%clk 0:00:03]}  Rxd5 {[%clk 0:01:35]} 29. Bd4 {[%clk 0:00:03]}  e6 {[%clk 0:01:33]} 30. a4 {[%clk 0:00:03]}  Kf8 {[%clk 0:01:32]} 31. Rb1 {[%clk 0:00:03]}  Ke7 {[%clk 0:01:28]} 32. Rb2 {[%clk 0:00:03]}  Rg8 {[%clk 0:01:27]} 33. f3 {[%clk 0:00:02]}  Kd7 {[%clk 0:01:23]} 34. Rd2 {[%clk 0:00:02]}  Kc6 {[%clk 0:01:23]} 35. Rb2 {[%clk 0:00:02]}  Rf5 {[%clk 0:01:18]} 36. Be5 {[%clk 0:00:02]}  f6 {[%clk 0:01:18]} 37. Bd4 {[%clk 0:00:02]}  Rxf4 {[%clk 0:01:18]} 0-1


[Site "https://www.chess.com"]

[Event "Titled Tuesday Blitz November 22 Early 2022"]
[White "Kopylov, Alexander A."]
[Black "Orlov, Georgi"]
[WhiteFideId "4164857"]
[BlackFideId "2011271"]
[WhiteElo "2436"]
[BlackElo "2545"]
[Result "1-0"]
[Round "09"]
[TimeControl "180+1"]
[Date "2022.11.23"]
[WhiteClock "0:01:08"]
[BlackClock "0:00:14"]

1. e4 {[%clk 0:03:00]}  b6 {[%clk 0:02:58]} 2. d4 {[%clk 0:02:59]}  Bb7 {[%clk 0:02:59]} 3. Bd3 {[%clk 0:02:59]}  Nf6 {[%clk 0:02:57]} 4. Nc3 {[%clk 0:02:58]}  e6 {[%clk 0:02:56]} 5. Nf3 {[%clk 0:02:48]}  Bb4 {[%clk 0:02:55]} 6. e5 {[%clk 0:02:46]}  Ne4 {[%clk 0:02:53]} 7. Bxe4 {[%clk 0:02:45]}  Bxe4 {[%clk 0:02:52]} 8. O-O {[%clk 0:02:45]}  Bxc3 {[%clk 0:02:47]} 9. bxc3 {[%clk 0:02:45]}  O-O {[%clk 0:02:47]} 10. h4 {[%clk 0:02:41]}  h6 {[%clk 0:02:42]} 11. Re1 {[%clk 0:02:39]}  Bg6 {[%clk 0:02:16]} 12. g4 {[%clk 0:02:38]}  f6 {[%clk 0:02:07]} 13. h5 {[%clk 0:02:37]}  Bh7 {[%clk 0:02:06]} 14. d5 {[%clk 0:02:14]}  fxe5 {[%clk 0:02:05]} 15. dxe6 {[%clk 0:01:49]}  dxe6 {[%clk 0:01:03]} 16. Qxd8 {[%clk 0:01:48]}  Rxd8 {[%clk 0:01:03]} 17. Nxe5 {[%clk 0:01:48]}  Bxc2 {[%clk 0:01:00]} 18. g5 {[%clk 0:01:48]}  hxg5 {[%clk 0:00:54]} 19. Bxg5 {[%clk 0:01:49]}  Rf8 {[%clk 0:00:54]} 20. Rac1 {[%clk 0:01:26]}  Bf5 {[%clk 0:00:52]} 21. Rcd1 {[%clk 0:01:26]}  Re8 {[%clk 0:00:50]} 22. Re3 {[%clk 0:01:17]}  Na6 {[%clk 0:00:48]} 23. Rd7 {[%clk 0:01:16]}  Nc5 {[%clk 0:00:47]} 24. Rxc7 {[%clk 0:01:16]}  Ne4 {[%clk 0:00:44]} 25. f4 {[%clk 0:01:14]}  Rac8 {[%clk 0:00:42]} 26. Rxa7 {[%clk 0:01:13]}  Nxc3 {[%clk 0:00:40]} 27. h6 {[%clk 0:01:10]}  gxh6 {[%clk 0:00:20]} 28. Bxh6 {[%clk 0:01:11]}  Ne2+ {[%clk 0:00:14]} 29. Rxe2 {[%clk 0:01:09]}  Rc1+ {[%clk 0:00:14]} 30. Kh2 {[%clk 0:01:08]} 1-0


[Site "https://www.chess.com"]

[Event "Titled Tuesday Blitz November 22 Early 2022"]
[White "Korchmar, Vasiliy"]
[Black "Odegov, Artem"]
[WhiteFideId "24131750"]
[BlackFideId "34183644"]
[WhiteElo "2370"]
[BlackElo "2298"]
[Result "1-0"]
[Round "09"]
[TimeControl "180+1"]
[Date "2022.11.23"]
[WhiteClock "0:00:14"]
[BlackClock "0:00:09"]

1. e4 {[%clk 0:02:55]}  e6 {[%clk 0:03:00]} 2. d4 {[%clk 0:02:55]}  d5 {[%clk 0:03:00]} 3. e5 {[%clk 0:02:55]}  c5 {[%clk 0:03:00]} 4. c3 {[%clk 0:02:56]}  Qb6 {[%clk 0:03:01]} 5. Nf3 {[%clk 0:02:56]}  Nc6 {[%clk 0:03:01]} 6. Be2 {[%clk 0:02:55]}  Bd7 {[%clk 0:02:59]} 7. O-O {[%clk 0:02:54]}  cxd4 {[%clk 0:02:57]} 8. cxd4 {[%clk 0:02:54]}  Nh6 {[%clk 0:02:58]} 9. Bxh6 {[%clk 0:02:53]}  gxh6 {[%clk 0:02:59]} 10. Qd2 {[%clk 0:02:47]}  Rc8 {[%clk 0:02:56]} 11. Nc3 {[%clk 0:02:47]}  Bg7 {[%clk 0:02:55]} 12. a3 {[%clk 0:02:24]}  O-O {[%clk 0:02:50]} 13. b4 {[%clk 0:02:21]}  Ne7 {[%clk 0:02:48]} 14. Bd3 {[%clk 0:02:16]}  Rc7 {[%clk 0:02:39]} 15. Ne2 {[%clk 0:01:41]}  Ng6 {[%clk 0:02:23]} 16. a4 {[%clk 0:01:29]}  a6 {[%clk 0:02:17]} 17. Ng3 {[%clk 0:01:27]}  Rfc8 {[%clk 0:02:16]} 18. Nh5 {[%clk 0:01:25]}  Rc3 {[%clk 0:02:08]} 19. Rfb1 {[%clk 0:01:15]}  Qd8 {[%clk 0:01:56]} 20. g3 {[%clk 0:01:10]}  Qf8 {[%clk 0:00:56]} 21. b5 {[%clk 0:01:01]}  a5 {[%clk 0:00:55]} 22. Re1 {[%clk 0:00:52]}  Qb4 {[%clk 0:00:51]} 23. h4 {[%clk 0:00:42]}  Rb3 {[%clk 0:00:46]} 24. Qe2 {[%clk 0:00:28]}  Rcc3 {[%clk 0:00:44]} 25. Red1 {[%clk 0:00:24]}  b6 {[%clk 0:00:27]} 26. Nh2 {[%clk 0:00:23]}  Rb2 {[%clk 0:00:20]} 27. Qe3 {[%clk 0:00:22]}  Ra3 {[%clk 0:00:11]} 28. Rxa3 {[%clk 0:00:19]}  Qxa3 {[%clk 0:00:11]} 29. Ng4 {[%clk 0:00:19]}  Rb3 {[%clk 0:00:12]} 30. Nxg7 {[%clk 0:00:15]}  Kxg7 {[%clk 0:00:08]} 31. Qxh6+ {[%clk 0:00:15]}  Kh8 {[%clk 0:00:09]} 32. Nf6 {[%clk 0:00:14]} 1-0


[Site "https://www.chess.com"]

[Event "Titled Tuesday Blitz November 22 Early 2022"]
[White "Kuznetsov, Mikhail"]
[Black "Vlassov, Nikolai"]
[WhiteFideId "4117190"]
[BlackFideId "4103360"]
[WhiteElo "1981"]
[BlackElo "2324"]
[Result "1-0"]
[Round "09"]
[TimeControl "180+1"]
[Date "2022.11.23"]
[WhiteClock "0:00:16"]
[BlackClock "0:00:21"]

1. Nf3 {[%clk 0:02:59]}  c5 {[%clk 0:02:59]} 2. g3 {[%clk 0:03:00]}  Nc6 {[%clk 0:02:59]} 3. d4 {[%clk 0:03:01]}  cxd4 {[%clk 0:02:58]} 4. Nxd4 {[%clk 0:03:01]}  Qa5+ {[%clk 0:02:58]} 5. Nc3 {[%clk 0:02:58]}  Nf6 {[%clk 0:02:53]} 6. Bg2 {[%clk 0:02:56]}  g6 {[%clk 0:02:44]} 7. O-O {[%clk 0:02:55]}  Bg7 {[%clk 0:02:44]} 8. Nb3 {[%clk 0:02:48]}  Qd8 {[%clk 0:02:40]} 9. Bf4 {[%clk 0:02:44]}  O-O {[%clk 0:02:39]} 10. Qd2 {[%clk 0:02:44]}  Re8 {[%clk 0:02:32]} 11. Bh6 {[%clk 0:02:44]}  Bh8 {[%clk 0:02:32]} 12. e4 {[%clk 0:02:34]}  d6 {[%clk 0:02:30]} 13. Rad1 {[%clk 0:02:26]}  Be6 {[%clk 0:02:30]} 14. Nd5 {[%clk 0:02:12]}  Ne5 {[%clk 0:02:23]} 15. Nd4 {[%clk 0:01:59]}  Bxd5 {[%clk 0:02:16]} 16. exd5 {[%clk 0:02:00]}  Nc4 {[%clk 0:02:12]} 17. Qb4 {[%clk 0:01:57]}  Nb6 {[%clk 0:01:58]} 18. c4 {[%clk 0:01:56]}  Ng4 {[%clk 0:01:42]} 19. Bf4 {[%clk 0:01:37]}  Ne5 {[%clk 0:01:31]} 20. b3 {[%clk 0:01:26]}  Qd7 {[%clk 0:01:31]} 21. Nf3 {[%clk 0:01:17]}  Nxf3+ {[%clk 0:01:29]} 22. Bxf3 {[%clk 0:01:18]}  Qc7 {[%clk 0:01:28]} 23. h4 {[%clk 0:01:11]}  Nd7 {[%clk 0:01:25]} 24. h5 {[%clk 0:01:10]}  a5 {[%clk 0:01:21]} 25. Qd2 {[%clk 0:01:00]}  a4 {[%clk 0:01:20]} 26. hxg6 {[%clk 0:00:51]}  hxg6 {[%clk 0:01:20]} 27. Kg2 {[%clk 0:00:51]}  Ne5 {[%clk 0:01:15]} 28. Rh1 {[%clk 0:00:47]}  Bg7 {[%clk 0:01:12]} 29. Bh6 {[%clk 0:00:44]}  Bf6 {[%clk 0:01:12]} 30. Bg5 {[%clk 0:00:41]}  Bg7 {[%clk 0:01:12]} 31. Bh6 {[%clk 0:00:38]}  Bf6 {[%clk 0:01:11]} 32. Bg5 {[%clk 0:00:30]}  Nxf3 {[%clk 0:01:10]} 33. Bxf6 {[%clk 0:00:20]}  Ne1+ {[%clk 0:00:24]} 34. Rdxe1 {[%clk 0:00:17]}  exf6 {[%clk 0:00:21]} 35. Qh6 {[%clk 0:00:16]}  Rxe1 {[%clk 0:00:21]} 36. Qh8# {[%clk 0:00:16]} 1-0


[Site "https://www.chess.com"]

[Event "Titled Tuesday Blitz November 22 Early 2022"]
[White "Lehtosaari, Mauri"]
[Black "Can, Isik"]
[WhiteFideId "501999"]
[BlackFideId "6383742"]
[WhiteElo "2509"]
[BlackElo "2374"]
[Result "0-1"]
[Round "09"]
[TimeControl "180+1"]
[Date "2022.11.23"]
[WhiteClock "0:00:45"]
[BlackClock "0:01:17"]

1. d4 {[%clk 0:03:00]}  d5 {[%clk 0:02:59]} 2. Nf3 {[%clk 0:03:01]}  Nf6 {[%clk 0:02:59]} 3. e3 {[%clk 0:03:01]}  Bf5 {[%clk 0:02:49]} 4. c4 {[%clk 0:03:00]}  c6 {[%clk 0:02:49]} 5. Nc3 {[%clk 0:03:00]}  e6 {[%clk 0:02:49]} 6. Qb3 {[%clk 0:02:59]}  Qc7 {[%clk 0:02:48]} 7. Bd2 {[%clk 0:02:58]}  Nbd7 {[%clk 0:02:46]} 8. Nh4 {[%clk 0:02:58]}  Be4 {[%clk 0:02:45]} 9. f3 {[%clk 0:02:58]}  Bg6 {[%clk 0:02:45]} 10. O-O-O {[%clk 0:02:53]}  dxc4 {[%clk 0:02:31]} 11. Bxc4 {[%clk 0:02:52]}  b5 {[%clk 0:02:32]} 12. Be2 {[%clk 0:02:36]}  a6 {[%clk 0:02:27]} 13. Nxg6 {[%clk 0:02:34]}  hxg6 {[%clk 0:02:28]} 14. g3 {[%clk 0:02:25]}  c5 {[%clk 0:02:27]} 15. Kb1 {[%clk 0:01:54]}  c4 {[%clk 0:02:10]} 16. Qc2 {[%clk 0:01:53]}  Nb6 {[%clk 0:02:05]} 17. e4 {[%clk 0:01:40]}  Qd7 {[%clk 0:02:04]} 18. e5 {[%clk 0:01:26]}  Nfd5 {[%clk 0:02:01]} 19. Nxd5 {[%clk 0:01:24]}  Nxd5 {[%clk 0:01:58]} 20. f4 {[%clk 0:01:21]}  Rc8 {[%clk 0:01:52]} 21. g4 {[%clk 0:01:12]}  Rh3 {[%clk 0:01:49]} 22. Ka1 {[%clk 0:01:09]}  c3 {[%clk 0:01:41]} 23. bxc3 {[%clk 0:01:08]}  Nxc3 {[%clk 0:01:30]} 24. Rc1 {[%clk 0:01:06]}  Qxd4 {[%clk 0:01:29]} 25. Bxb5+ {[%clk 0:00:46]}  Nxb5+ {[%clk 0:01:27]} 26. Qb2 {[%clk 0:00:45]}  Qxb2+ {[%clk 0:01:17]} 27. Kxb2 {[%clk 0:00:45]}  Ba3+ {[%clk 0:01:17]} 0-1


[Site "https://www.chess.com"]